bitfinex/quotes_ETHUSD_20220218
["timestamp","ask_amount","ask_price","bid_price","bid_amount"]
[1645169578500,0.94860842,2902.8,2902.7,0.02223775]
[1645169578702,0.94860842,2902.8,2902.7,0.53802394]
[1645169578900,0.94860842,2902.8,2902.7,0.02223775]
[1645169579100,0.94860842,2902.8,2902.7,0.53804372]
[1645169579304,0.94860842,2902.8,2902.7,0.02223775]
[1645169579502,0.94860842,2902.8,2902.7,0.5380181]
[1645169579701,0.94860842,2902.8,2902.7,0.02223775]
[1645169579902,0.94860842,2902.8,2902.7,0.53801785]
[1645169580102,0.94860842,2902.8,2902.7,0.02223775]
[1645169580302,0.94860842,2902.8,2902.7,0.5380172]
[1645169580503,0.94860842,2902.8,2902.7,0.02223775]
[1645169580704,0.94860842,2902.8,2902.7,0.53801199]
[1645169580907,0.94860842,2902.8,2902.7,0.53998838]
[1645169581104,0.94860842,2902.8,2902.7,0.02223775]
[1645169581549,0.94860842,2902.8,2902.7,0.5177182]
[1645169581749,0.94860842,2902.8,2902.7,0.51772163]
[1645169581951,0.94860842,2902.8,2902.7,0.51772342]
[1645169582148,0.94860842,2902.8,2902.7,0.81772108]
[1645169582349,0.94860842,2902.8,2902.7,0.3]
[1645169582751,0.94860842,2902.8,2902.7,0.81769023]
[1645169582951,0.94860842,2902.8,2902.7,0.3]
[1645169583151,0.94860842,2902.8,2902.7,0.81769078]
[1645169583353,0.94860842,2902.8,2902.7,0.3]
[1645169583553,0.94860842,2902.8,2902.7,0.81760941]
[1645169583752,0.94860842,2902.8,2902.7,0.3]
[1645169584152,0.94860842,2902.8,2902.7,0.81760856]
[1645169584356,0.94860842,2902.8,2902.7,0.29887926]
[1645169584555,0.94860842,2902.8,2902.7,0.81651114]
[1645169584753,0.94860842,2902.8,2902.7,0.29887926]
[1645169584953,0.94860842,2902.8,2902.5,0.02223775]
[1645169585205,0.94860842,2902.7,2902.6,0.51931307]
[1645169585404,0.94860842,2902.7,2902.6,0.51931601]
[1645169585606,0.94860842,2902.7,2902.5,0.02223775]
[1645169585804,0.94860842,2902.6,2902.5,0.02223775]
[1645169586206,0.94860842,2902.6,2902.5,0.54158379]
[1645169586405,0.94860842,2902.6,2902.5,0.02223775]
[1645169586807,0.94860842,2902.6,2902.5,0.52552117]
[1645169587005,0.94860842,2902.6,2902.5,0.52552101]
[1645169587212,0.94860842,2902.6,2902.4,0.31750775]
[1645169587409,0.94860842,2902.5,2902.4,0.31750775]
[1645169587611,0.93271094,2902.5,2902.4,0.84307706]
[1645169588210,0.93271094,2902.7,2902.4,0.84307706]
[1645169588410,0.93271094,2902.7,2902.5,0.52567797]
[1645169588612,0.93271094,2902.7,2902.4,0.31750775]
[1645169588853,0.93271094,2902.7,2902.5,0.52568018]
[1645169589047,0.93271094,2902.7,2902.6,0.52568217]
[1645169589249,0.93271094,2902.7,2902.5,0.5257477]
[1645169589449,0.93271094,2902.7,2902.6,0.5257303]
[1645169589646,0.93271094,2902.7,2902.4,0.31750775]
[1645169589647,0.93271094,2902.7,2902.5,0.52572934]
[1645169590248,0.93271094,2902.7,2902.4,0.31750775]
[1645169590848,0.93271094,2902.7,2902.5,0.52578164]
[1645169591047,0.93271094,2902.7,2902.4,0.31750775]
[1645169591453,0.93271094,2902.7,2902.5,0.52579772]
[1645169591646,0.93271094,2902.7,2902.6,0.03499155]
[1645169591846,0.93271094,2902.7,2902.6,0.56078752]
[1645169592046,0.93271094,2902.7,2902.6,0.56079107]
[1645169592247,0.93271094,2902.7,2902.6,0.03499155]
[1645169592904,0.93271094,2902.7,2902.6,0.56084682]
[1645169593108,0.93271094,2902.7,2902.6,0.03499155]
[1645169593305,0.93271094,2902.7,2902.6,0.5609288]
[1645169593504,0.93271094,2902.7,2902.6,0.03499155]
[1645169593705,0.93271094,2902.7,2902.6,0.56092939]
[1645169593905,0.93271094,2902.7,2902.6,0.03499155]
[1645169595010,0.93271094,2902.7,2902.6,0.56103638]
[1645169595206,0.93271094,2902.7,2902.6,0.03499155]
[1645169595407,0.93271094,2902.7,2902.6,0.56113362]
[1645169595608,0.93271094,2902.7,2902.6,0.03499155]
[1645169595808,0.93271094,2902.7,2902.6,0.56112924]
[1645169596009,0.93271094,2902.7,2902.6,0.5611283]
[1645169596209,0.93271094,2902.7,2902.6,0.56114178]
[1645169596448,0.93271094,2902.7,2902.6,0.56123986]
[1645169596653,0.93271094,2902.7,2902.6,0.03499155]
[1645169596857,0.93271094,2902.7,2902.6,0.5437486]
[1645169597255,0.93271094,2902.9,2902.6,0.5437486]
[1645169597456,0.93271094,2902.9,2902.7,0.52628233]
[1645169597657,0.93271094,2902.9,2902.7,1.02228233]
[1645169597858,0.93271094,2902.9,2902.8,1.52966459]
[1645169599262,0.93271094,2902.9,2902.8,1.00338226]
[1645169599459,0.93271094,2902.9,2902.8,1.52957941]
[1645169599658,0.93271094,2902.9,2902.8,1.00338226]
[1645169599860,0.93271094,2902.9,2902.8,1.52958592]
[1645169600101,0.93271094,2902.9,2902.8,1.52956896]
[1645169600303,0.93271094,2902.9,2902.8,1.52957815]
[1645169600500,0.93271094,2902.9,2902.8,1.52957703]
[1645169600700,0.93271094,2902.9,2902.8,1.5295667]
[1645169600902,0.93271094,2902.9,2902.8,1.00338226]
[1645169601102,0.93271094,2902.9,2902.8,1.52954272]
[1645169601305,0.93271094,2902.9,2902.8,1.00338226]
[1645169601506,0.93271094,2902.9,2902.8,1.52954456]
[1645169601706,0.93271094,2902.9,2902.8,1.56467666]
[1645169601906,0.93271094,2902.9,2902.8,1.5646818]
[1645169602106,0.93271094,2902.9,2902.8,1.5646893]
[1645169602305,0.93271094,2902.9,2902.8,1.56469406]
[1645169602505,0.93271094,2902.9,2902.8,1.03850121]
[1645169602705,0.93271094,2902.9,2902.8,0.03511895]
[1645169602909,0.93271094,2902.9,2902.8,0.5613129]
[1645169603106,0.93271094,2902.9,2902.8,0.03511895]
[1645169603307,0.93271094,2902.9,2902.8,0.56143217]
[1645169603507,0.93271094,2902.9,2902.8,0.03511895]
[1645169603948,0.93271094,2902.9,2902.8,0.5614211]
[1645169604147,0.93271094,2902.9,2902.8,0.03511895]
[1645169604748,0.93271094,2902.9,2902.8,0.56150156]
[1645169604951,0.93271094,2902.9,2902.8,0.56145488]
[1645169606355,0.93271094,2902.9,2902.8,0.56145171]
[1645169606554,0.93271094,2902.9,2902.8,0.03511895]
[1645169606754,0.93271094,2902.9,2902.8,0.54393399]
[1645169606955,0.93271094,2902.9,2902.8,0.01759781]
[1645169607157,0.93271094,2902.9,2902.8,0.54393737]
[1645169607592,0.93409076,2902.9,2902.8,0.54393737]
[1645169609497,0.00137982,2902.9,2902.8,0.54393737]
[1645169609897,0.93594024,2902.9,2902.8,0.54393737]
[1645169610099,0.00137982,2902.9,2902.8,0.54393737]
[1645169610301,0.93572483,2902.9,2902.8,0.54393737]
[1645169610702,0.93570732,2902.9,2902.8,0.54393737]
[1645169611844,0.93570732,2902.9,2902.8,0.5509765]
[1645169612046,0.93249496,2902.9,2902.8,0.5509765]
[1645169613049,0.00137901,2902.9,2902.8,0.5509765]
[1645169613252,0.00038866,2902.9,2902.8,0.5509765]
[1645169618006,4.261454,2903.0,2902.8,0.5509765]
[1645169618207,4.261454,2903.0,2902.8,0.02463694]
[1645169621757,4.261454,2903.0,2902.7,1.96845498]
[1645169625212,3.4,2903.0,2902.7,3.69125498]
[1645169626653,3.4,2903.0,2902.9,0.02460449]
[1645169631704,3.4,2903.0,2902.8,0.0245296]
[1645169631902,3.4,2903.0,2902.9,0.53825053]
[1645169632103,4.32043191,2903.0,2902.9,0.53825053]
[1645169636864,4.32043191,2903.0,2902.9,0.56285502]
[1645169640016,2.36260152,2903.4,2903.1,3.5]
[1645169640215,0.63967992,2903.8,2903.0,0.86128]
[1645169640414,0.63967992,2903.9,2903.1,0.496]
[1645169640615,0.8611385,2903.8,2903.1,1.1510929]
[1645169641665,0.8611385,2903.8,2903.7,1.03396918]
[1645169641863,0.23781032,2903.5,2903.3,0.496]
[1645169642265,1.09905252,2903.5,2903.4,1.13023444]
[1645169642464,1.09905252,2903.5,2903.3,0.496]
[1645169643269,1.10009616,2903.5,2903.3,0.496]
[1645169644272,1.09905252,2903.5,2903.3,0.496]
[1645169644471,1.10209293,2903.5,2903.3,0.496]
[1645169645508,1.09905252,2903.5,2903.3,0.496]
[1645169645703,1.10224601,2903.5,2903.3,0.496]
[1645169646711,1.09905252,2903.5,2903.3,0.496]
[1645169646915,1.10224601,2903.5,2903.4,0.04899815]
[1645169647713,1.10224601,2903.5,2903.4,1.40451785]
[1645169647913,1.09905252,2903.5,2903.4,1.40451785]
[1645169648713,1.09905252,2903.5,2903.4,1.10451785]
[1645169648958,4.49905252,2903.5,2903.4,1.10451785]
[1645169649860,4.49905252,2903.5,2903.4,1.40451785]
[1645169650760,4.49905252,2903.5,2903.4,1.10451785]
[1645169652464,4.49905252,2903.5,2903.4,0.04899815]
[1645169654209,5.13873244,2903.5,2903.4,0.04899815]
[1645169654411,5.31083244,2903.5,2903.4,0.04899815]
[1645169655008,4.67115252,2903.5,2903.4,0.04899815]
[1645169655208,5.15511293,2903.5,2903.4,0.04899815]
[1645169656011,5.16010065,2903.5,2903.4,0.04899815]
[1645169656455,5.1602387,2903.5,2903.4,0.04899815]
[1645169657855,4.50404024,2903.5,2903.4,0.04899815]
[1645169658055,4.50404024,2903.5,2903.4,0.02454763]
[1645169660108,5.37136936,2903.5,2903.4,0.02454763]
[1645169661703,5.37136936,2903.5,2903.4,0.02200546]
[1645169661905,0.00417387,2902.9,2902.8,0.02210258]
[1645169662105,0.87150299,2902.9,2902.8,0.61642378]
[1645169662304,1.17150299,2902.9,2902.8,0.61642378]
[1645169662503,1.17150299,2902.9,2902.8,1.45571699]
[1645169663307,1.17150299,2902.9,2902.8,0.61642378]
[1645169666860,1.19081895,2902.9,2902.8,0.5943212]
[1645169667059,0.89081895,2902.9,2902.8,0.5943212]
[1645169667262,1.19081895,2902.9,2902.6,5.8170812]
[1645169667459,0.86732912,2902.8,2902.7,0.8943212]
[1645169671554,0.86732912,2902.8,2902.7,4.3943212]
[1645169671757,0.86732912,2902.8,2902.7,4.93390645]
[1645169671758,0.71240676,2902.8,2902.7,4.93390645]
[1645169671956,0.71240676,2902.8,2902.7,1.43390645]
[1645169672154,0.71240676,2902.8,2902.7,4.43390645]
[1645169672759,0.71240676,2902.8,2902.7,16.98139098]
[1645169673459,0.71240676,2902.8,2902.7,17.6406737]
[1645169673758,0.71240676,2902.8,2902.7,18.5019237]
[1645169673960,0.71240676,2902.8,2902.7,19.49678959]
[1645169674361,0.71240676,2902.8,2902.7,19.83750687]
[1645169674760,0.71240676,2902.8,2902.7,19.49673294]
[1645169674960,0.71240676,2902.8,2902.7,19.83750687]
[1645169675807,0.71240676,2902.8,2902.7,20.49671135]
[1645169676208,0.71240676,2902.8,2902.7,19.63546135]
[1645169676808,0.71240676,2902.8,2902.7,18.63546172]
[1645169677009,0.71240676,2902.8,2902.7,17.64059583]
[1645169677407,0.00417387,2902.9,2902.7,17.64059583]
[1645169677608,0.00417387,2902.9,2902.7,17.38193567]
[1645169677813,0.00417387,2902.9,2902.7,17.04627463]
[1645169678216,0.00417387,2902.9,2902.7,16.38706978]
[1645169678866,0.00417387,2902.9,2902.7,13.38706978]
[1645169679566,0.00417387,2902.9,2902.7,16.88706978]
[1645169680967,0.00417387,2902.9,2902.7,13.38706978]
[1645169681568,0.00417387,2902.9,2902.7,16.88706978]
[1645169681767,0.00417387,2902.9,2902.7,13.38706978]
[1645169682168,0.00417387,2902.9,2902.8,4.15920485]
[1645169682368,0.00417387,2902.9,2902.8,4.65520485]
[1645169682606,3.40417387,2902.9,2902.8,4.65520485]
[1645169682808,3.40417387,2902.9,2902.8,3.996]
[1645169683207,3.40417387,2902.9,2902.8,4.65520485]
[1645169683410,3.40417387,2902.9,2902.8,3.996]
[1645169683808,0.00297114,2903.2,2902.8,3.996]
[1645169684008,0.00498772,2903.3,2902.8,3.996]
[1645169684208,0.00297114,2903.2,2902.8,3.996]
[1645169684708,0.00297114,2903.2,2902.8,0.496]
[1645169685209,0.86632162,2903.3,2902.8,3.996]
[1645169685409,0.00297121,2903.2,2902.8,3.996]
[1645169685609,0.00297121,2903.2,2903.1,1.04641978]
[1645169685811,0.30297121,2903.2,2903.0,0.496]
[1645169686460,0.3,2903.2,2903.0,0.496]
[1645169686663,0.30298645,2903.2,2903.0,0.496]
[1645169686960,0.30298645,2903.2,2903.0,1.38985874]
[1645169687161,0.00298645,2903.2,2903.0,1.38985874]
[1645169687360,0.00298645,2903.2,2903.0,1.68985874]
[1645169687561,0.86632162,2903.3,2903.0,1.68985874]
[1645169687767,0.30298645,2903.2,2903.0,1.38985874]
[1645169687968,0.30298645,2903.2,2903.0,2.25109874]
[1645169688768,0.3,2903.2,2903.0,2.25109874]
[1645169688970,0.30298645,2903.2,2903.0,2.25109874]
[1645169689571,0.00298645,2903.2,2903.0,2.25109874]
[1645169689768,0.00298645,2903.2,2903.0,2.55109874]
[1645169689970,0.86632162,2903.3,2903.0,1.68985874]
[1645169690209,0.00298287,2903.2,2903.0,1.68985874]
[1645169691214,0.86632162,2903.3,2903.0,1.68985874]
[1645169691410,0.00298287,2903.2,2903.0,1.68985874]
[1645169691814,1.13640319,2903.2,2903.1,0.67472169]
[1645169692110,0.83640319,2903.2,2903.1,0.67472169]
[1645169692310,0.83342032,2903.2,2903.1,0.67472169]
[1645169692915,0.83342032,2903.2,2903.1,1.17072169]
[1645169693314,1.66684064,2903.4,2903.2,4.5]
[1645169693516,0.23781032,2903.5,2903.3,0.496]
[1645169693721,0.23781032,2903.5,2903.3,0.796]
[1645169695360,0.23781032,2903.5,2903.3,0.496]
[1645169697059,0.23781032,2903.5,2903.4,0.04699997]
[1645169697260,0.23781032,2903.5,2903.4,0.54299997]
[1645169697460,0.24100926,2903.5,2903.4,0.54299997]
[1645169698312,0.23781032,2903.5,2903.4,0.54299997]
[1645169700522,0.23781032,2903.5,2903.4,0.71509997]
[1645169700914,0.23781032,2903.5,2903.4,0.54299997]
[1645169705911,2.43781032,2903.5,2903.4,0.54299997]
[1645169707813,0.23781032,2903.5,2903.4,1.74299997]
[1645169709064,0.2427731,2903.5,2903.4,1.74299997]
[1645169713512,1.04295828,2903.5,2903.4,2.40297522]
[1645169716115,1.04201202,2903.5,2903.4,2.40297522]
[1645169722108,1.04303349,2903.5,2903.4,2.40297522]
[1645169723963,1.04303349,2903.5,2903.4,2.90297522]
[1645169724160,1.04303349,2903.5,2903.4,2.40297522]
[1645169724761,1.04303349,2903.5,2903.4,1.90697522]
[1645169727818,1.04303349,2903.5,2903.4,1.90799371]
[1645169728012,1.04303349,2903.5,2903.4,1.24699997]
[1645169728213,1.04303349,2903.5,2903.4,1.90801726]
[1645169728514,1.04303349,2903.5,2903.4,1.90802077]
[1645169728716,1.04303349,2903.5,2903.4,1.24699997]
[1645169728913,1.04303349,2903.5,2903.4,1.90806384]
[1645169729114,1.04303349,2903.5,2903.4,1.24699997]
[1645169729314,1.04303349,2903.5,2903.4,1.90802116]
[1645169729513,1.04303349,2903.5,2903.4,1.24699997]
[1645169729715,1.04303349,2903.5,2903.4,1.90803604]
[1645169729916,1.04303349,2903.5,2903.4,1.24699997]
[1645169730120,1.04303349,2903.5,2903.4,1.9080712]
[1645169730315,1.04303349,2903.5,2903.4,1.24699997]
[1645169730515,1.04303349,2903.5,2903.4,1.90805783]
[1645169730715,1.04303349,2903.5,2903.4,1.24699997]
[1645169730915,1.04303349,2903.5,2903.4,1.90813306]
[1645169731117,1.04303349,2903.5,2903.4,1.24699997]
[1645169731564,1.04303349,2903.5,2903.4,1.90811713]
[1645169731767,1.04303349,2903.5,2903.4,1.90811646]
[1645169731965,1.04303349,2903.5,2903.4,1.24699997]
[1645169732170,1.04303349,2903.5,2903.4,1.90808584]
[1645169732366,1.0435867,2903.5,2903.4,1.90808584]
[1645169732565,1.04358472,2903.5,2903.4,1.90808584]
[1645169732773,0.24182684,2903.5,2903.4,1.90808584]
[1645169732974,1.04358988,2903.5,2903.4,1.90808584]
[1645169733169,0.24182684,2903.5,2903.4,1.90808584]
[1645169733370,1.04354331,2903.5,2903.4,1.90808584]
[1645169733571,1.04353714,2903.5,2903.4,1.90808584]
[1645169733772,0.24182684,2903.5,2903.4,1.90808584]
[1645169733972,1.04355016,2903.5,2903.4,1.90808584]
[1645169734172,0.24182684,2903.5,2903.4,1.90808584]
[1645169734372,1.04361579,2903.5,2903.4,1.90808584]
[1645169734572,0.24182684,2903.5,2903.4,2.40408584]
[1645169734772,1.0436081,2903.5,2903.4,2.40408584]
[1645169734972,0.24182684,2903.5,2903.4,2.40408584]
[1645169735210,1.043625,2903.5,2903.4,2.40408584]
[1645169735414,1.0436236,2903.5,2903.4,2.40408584]
[1645169739263,1.0436236,2903.5,2903.4,2.70408584]
[1645169739466,1.04166538,2903.5,2903.4,2.70408584]
[1645169740666,1.04166538,2903.5,2903.4,2.40408584]
[1645169747562,9.04959386,2904.8,2903.7,5.0]
[1645169747765,0.86111,2905.1,2903.9,6.206]
[1645169747766,0.65753209,2904.2,2903.9,6.206]
[1645169747965,0.80220729,2904.4,2904.0,1.98839072]
[1645169748166,0.80220729,2904.3,2904.1,0.70907095]
[1645169748363,0.65753209,2904.8,2904.2,0.496]
[1645169748567,0.65753209,2904.8,2904.3,1.56982095]
[1645169748764,1.40114923,2904.9,2904.4,1.20507095]
[1645169748963,0.87670945,2905.2,2904.5,0.70907095]
[1645169748964,0.74361714,2904.8,2904.5,0.70907095]
[1645169749165,0.74361714,2904.8,2904.6,0.496]
[1645169749665,0.65753209,2905.0,2904.7,0.70907095]
[1645169749864,0.65753209,2905.0,2904.8,0.496]
[1645169750107,0.65753209,2905.0,2904.9,0.70907095]
[1645169750310,0.65753209,2905.0,2904.9,0.496]
[1645169750511,0.65753209,2905.0,2904.5,0.496]
[1645169750512,0.74281178,2905.0,2904.5,0.496]
[1645169750716,0.74281178,2905.0,2904.1,0.496]
[1645169750717,0.65684074,2904.6,2904.1,0.496]
[1645169750912,0.65679554,2904.4,2904.2,0.71938667]
[1645169751210,0.65679554,2904.4,2903.7,0.496]
[1645169751409,0.9268535,2904.0,2903.8,0.71935991]
[1645169751616,0.74281178,2903.9,2903.8,0.71935991]
[1645169752413,0.65679554,2904.2,2903.8,0.71935991]
[1645169752816,0.00320286,2904.0,2903.8,0.71935991]
[1645169753417,0.74601464,2904.0,2903.8,0.71935991]
[1645169753616,0.74281178,2903.9,2903.8,0.71935991]
[1645169753879,1.2106,2904.4,2903.8,0.71935991]
[1645169753880,0.00297209,2904.0,2903.8,1.01935991]
[1645169754080,0.00297209,2904.0,2903.9,0.71927403]
[1645169754281,0.00297209,2904.0,2903.9,1.01927403]
[1645169754484,0.00297209,2904.0,2903.9,0.71927403]
[1645169754682,0.00297209,2904.0,2903.9,1.01927403]
[1645169754983,0.74281178,2904.2,2903.9,0.71927403]
[1645169755181,0.74578384,2904.1,2904.0,0.71927403]
[1645169755583,0.74578384,2904.1,2903.8,0.72847599]
[1645169755786,0.73300226,2904.0,2903.9,0.7284758]
[1645169756182,0.73300226,2904.3,2903.8,0.7284758]
[1645169756382,0.00297206,2904.1,2903.9,0.7284758]
[1645169756583,0.73597432,2904.1,2904.0,0.7284758]
[1645169756784,0.00297206,2904.1,2903.4,1.68763173]
[1645169756984,0.00297206,2904.1,2903.9,0.02453044]
[1645169757182,0.73300226,2904.3,2903.9,0.02453044]
[1645169757383,0.73300226,2904.3,2904.0,0.72838125]
[1645169757622,0.73300226,2904.3,2903.9,0.02453044]
[1645169757831,0.73300226,2904.3,2904.0,0.72838091]
[1645169758026,0.73300226,2904.3,2903.9,0.02453044]
[1645169758226,0.73300226,2904.3,2903.5,0.8610826]
[1645169758429,0.73300226,2904.3,2903.6,0.72833896]
[1645169758825,0.00298754,2904.2,2903.6,0.72833896]
[1645169759626,0.73300226,2904.3,2903.6,0.72833896]
[1645169759827,0.00298766,2904.0,2903.6,2.45045896]
[1645169760027,0.00298766,2904.0,2903.7,0.72833896]
[1645169760931,0.73300226,2904.3,2903.7,0.72833896]
[1645169761128,0.00298769,2904.0,2903.7,0.72833896]
[1645169761363,0.00298769,2904.0,2903.7,1.92833896]
[1645169761565,0.00298769,2904.0,2903.8,0.72833896]
[1645169762060,0.73300226,2904.3,2903.8,0.72833896]
[1645169762261,0.00298661,2904.0,2903.8,0.72833896]
[1645169763165,0.73300226,2904.1,2903.8,0.72833896]
[1645169763469,0.00298661,2904.0,2903.8,0.72833896]
[1645169763665,0.74092684,2904.0,2903.8,0.72833896]
[1645169763966,0.73300226,2903.9,2903.8,0.72833896]
[1645169764366,0.73300226,2904.2,2903.8,0.72833896]
[1645169764566,0.73794023,2904.1,2903.9,0.7282342]
[1645169764869,0.7359889,2904.0,2903.7,0.9642843]
[1645169765111,0.73300226,2903.9,2903.8,0.74188895]
[1645169768215,0.73300226,2903.9,2903.7,0.4682843]
[1645169768415,0.73300226,2903.8,2903.7,0.4682843]
[1645169768893,0.73300226,2903.8,2903.7,1.21020238]
[1645169771483,0.73300226,2903.8,2903.7,1.19800284]
[1645169771681,1.3897978,2903.8,2903.7,0.4682843]
[1645169772619,2.52145587,2903.8,2903.7,0.4682843]
[1645169773220,1.86466033,2903.8,2903.7,0.4682843]
[1645169774119,2.52145587,2903.8,2903.7,0.4682843]
[1645169774520,1.86466033,2903.8,2902.8,1.01694153]
[1645169774721,0.73794023,2903.7,2902.9,0.72977705]
[1645169774920,0.73300226,2903.6,2902.9,0.72977705]
[1645169775124,0.73300226,2903.6,2902.9,4.22977705]
[1645169775322,0.73300226,2903.6,2903.0,0.72977705]
[1645169775323,1.19129765,2903.3,2903.0,0.72977705]
[1645169775523,1.19129765,2903.3,2903.1,0.72977705]
[1645169775524,0.73300226,2903.2,2903.1,0.72977705]
[1645169776223,0.81750226,2903.2,2902.8,0.00298766]
[1645169776492,0.73300226,2903.1,2902.7,0.72949794]
[1645169776688,0.73300226,2903.1,2902.8,0.73669574]
[1645169776891,0.73300226,2903.1,2902.9,0.72949794]
[1645169777488,0.73300226,2903.1,2903.0,0.72949794]
[1645169777694,0.73300226,2903.1,2902.7,0.72949794]
[1645169777894,0.73300226,2903.0,2902.8,0.73669568]
[1645169778092,1.2405,2903.4,2902.8,0.73669568]
[1645169778093,1.2405,2903.4,2902.9,0.72949794]
[1645169778292,0.7298138,2903.3,2902.8,0.00719774]
[1645169778494,0.7298138,2903.3,2902.9,0.72949794]
[1645169778692,0.7298138,2903.3,2903.0,0.72949794]
[1645169778893,0.7298138,2903.3,2903.1,0.72949794]
[1645169779097,0.7298138,2903.3,2903.2,0.72949794]
[1645169779501,0.7298138,2903.3,2903.0,0.72949794]
[1645169779695,4.7284,2903.6,2903.2,0.496]
[1645169779894,0.72981942,2903.5,2903.3,0.72949794]
[1645169780316,0.72981942,2903.4,2903.3,0.72949794]
[1645169780616,0.72981942,2903.4,2903.3,1.22549794]
[1645169780814,0.0029868,2903.7,2903.3,1.22549794]
[1645169781015,0.0029868,2903.7,2903.4,0.72949794]
[1645169781215,0.73283722,2903.7,2903.4,1.22549794]
[1645169781416,0.72985042,2903.6,2903.5,1.69022469]
[1645169782216,0.72985042,2903.6,2903.4,0.496]
[1645169782417,0.72985042,2903.5,2902.8,0.00421018]
[1645169782617,0.72985042,2903.4,2902.9,0.73677016]
[1645169782819,0.72985042,2903.3,2903.0,0.73677016]
[1645169783020,0.72985042,2903.2,2902.8,0.00719797]
[1645169783218,1.86539554,2903.6,2902.9,0.73660835]
[1645169783219,0.72985042,2903.1,2902.9,0.73660835]
[1645169783419,0.72985042,2903.0,2902.9,0.73660835]
[1645169784459,0.72985042,2903.0,2902.9,1.23660835]
[1645169785461,0.72985042,2903.0,2902.4,0.0161777]
[1645169785462,0.73074229,2902.6,2902.4,0.0161777]
[1645169785660,0.73074229,2902.6,2902.5,0.74574723]
[1645169795409,0.73074229,2902.6,2902.5,1.24574723]
[1645169796709,0.73074229,2902.6,2902.5,0.74574723]
[1645169798112,0.72094866,2902.6,2902.5,0.74574723]
[1645169803115,0.72094866,2902.6,2902.3,0.96946084]
[1645169803316,0.72094866,2902.6,2902.4,0.00430711]
[1645169803514,0.72094866,2902.6,2902.4,0.50030711]
[1645169804318,0.61654468,2902.6,2902.4,0.50030711]
[1645169804921,0.61654468,2902.6,2902.4,0.00430711]
[1645169805124,0.61654468,2902.6,2902.1,0.00430711]
[1645169805719,0.61654468,2902.6,2901.8,0.00430711]
[1645169806126,1.11972213,2902.0,2901.6,0.00430711]
[1645169806368,0.61654468,2902.6,2901.6,0.00430711]
[1645169806369,0.91298037,2902.1,2902.0,0.0054729]
[1645169808974,4.2707,2902.5,2902.0,0.0054729]
[1645169810420,1.01355684,2902.3,2902.1,0.0032064]
[1645169811117,1.01355684,2902.3,2902.1,0.00320583]
[1645169811325,1.01355684,2902.3,2902.0,0.0054729]
[1645169812820,1.01355684,2902.3,2902.0,0.00748071]
[1645169813619,1.01355684,2902.3,2902.0,0.0054729]
[1645169813859,1.01355684,2902.3,2902.0,0.00848911]
[1645169814866,1.01355684,2902.3,2902.0,0.0054729]
[1645169815166,1.01355684,2902.3,2902.0,0.00848911]
[1645169816167,1.01355684,2902.3,2902.0,0.0054729]
[1645169816367,1.01355684,2902.3,2902.0,0.00848911]
[1645169816968,1.01355684,2902.3,2902.2,0.02230978]
[1645169818017,1.01355684,2902.3,2902.0,0.0029908]
[1645169820916,1.01355684,2902.3,2902.0,0.00729791]
[1645169821463,4.2707,2902.5,2902.0,0.00729791]
[1645169821867,0.0644911,2902.3,2902.0,0.00729791]
[1645169822264,0.0644911,2902.3,2902.0,0.01050448]
[1645169823375,0.0644911,2902.3,2902.1,0.71315305]
[1645169823571,0.0644911,2902.3,2902.1,0.71746016]
[1645169823772,0.0644911,2902.3,2902.2,0.71315305]
[1645169823970,0.80892118,2902.3,2902.2,0.71746016]
[1645169824169,7.78784251,2902.0,2901.9,0.796]
[1645169824370,7.78784251,2902.0,2901.9,1.50924941]
[1645169825841,7.78784251,2902.0,2901.9,1.20924941]
[1645169826244,6.22060174,2902.0,2901.9,1.20924941]
[1645169831771,6.25348974,2902.0,2901.9,1.20924941]
[1645169838977,6.25348974,2902.0,2901.9,1.16802988]
[1645169840816,7.0420738,2902.0,2901.9,1.16802988]
[1645169842922,7.0420738,2902.0,2901.9,0.67202988]
[1645169845470,7.0420738,2902.0,2901.8,0.00315224]
[1645169845665,0.78858406,2901.9,2901.8,0.00741746]
[1645169845864,0.78858406,2901.9,2901.8,0.67944734]
[1645169846069,0.78858406,2901.9,2901.8,0.67202988]
[1645169846267,0.78858406,2901.9,2901.8,0.6762951]
[1645169847471,0.78858406,2901.9,2901.8,0.00426522]
[1645169847723,0.78858406,2901.9,2901.8,0.67730576]
[1645169847926,0.78858406,2901.9,2901.8,0.00426522]
[1645169848127,0.78858406,2901.9,2901.8,0.68144721]
[1645169848330,0.78858406,2901.9,2901.8,0.00426522]
[1645169848527,0.78858406,2901.9,2901.8,0.67746902]
[1645169848727,0.78858406,2901.9,2901.8,0.00426522]
[1645169848926,0.78858406,2901.9,2901.7,0.00320668]
[1645169849431,0.78858406,2901.9,2901.7,0.68494054]
[1645169849626,0.78858406,2901.9,2901.4,1.82132413]
[1645169849627,0.78858406,2901.9,2901.8,0.67746864]
[1645169849826,0.78858406,2901.9,2901.8,0.00426522]
[1645169850125,0.78858406,2901.9,2901.8,0.67746864]
[1645169850326,0.78858406,2901.9,2901.8,0.00426522]
[1645169850526,0.78858406,2901.9,2901.8,0.67746864]
[1645169850727,0.78858406,2901.9,2901.8,0.00426522]
[1645169851025,0.78858406,2901.9,2901.8,0.67746864]
[1645169851469,2.5,2901.8,2901.7,0.00320668]
[1645169851666,0.00029877,2901.4,2901.3,0.67775722]
[1645169851868,4.0,2901.3,2901.2,0.0128291]
[1645169852074,25.06,2901.2,2901.0,0.29418604]
[1645169852266,21.22012566,2901.1,2900.8,0.14032596]
[1645169852470,1.16012566,2901.0,2900.6,2.35122129]
[1645169852672,1.02037283,2900.9,2900.6,2.35122129]
[1645169852870,21.38037283,2900.9,2900.6,2.35122129]
[1645169853072,26.21993745,2900.8,2900.6,2.35122129]
[1645169853371,20.06,2900.6,2899.8,5.169]
[1645169853571,0.485,2900.7,2899.8,5.169]
[1645169853871,20.545,2900.7,2900.6,0.0020017]
[1645169854170,0.485,2900.7,2900.6,0.0020017]
[1645169854371,1.485,2900.7,2900.6,0.0020017]
[1645169854575,0.92891281,2900.3,2899.8,5.169]
[1645169854769,0.92891281,2900.3,2900.1,0.00797468]
[1645169855126,1.01341281,2900.3,2900.1,0.00797468]
[1645169855832,1.01341281,2900.3,2899.8,5.169]
[1645169856024,1.01341281,2900.3,2900.1,0.00199368]
[1645169856628,20.2324,2900.2,2900.1,0.00199368]
[1645169856826,0.1724,2900.2,2900.1,0.00199368]
[1645169857026,0.1724,2900.2,2899.8,5.169]
[1645169857229,0.1724,2900.2,2900.0,0.00199371]
[1645169858229,0.1724,2900.2,2899.8,5.169]
[1645169858230,20.06,2900.1,2899.8,5.169]
[1645169858431,0.1724,2900.2,2900.0,0.00320911]
[1645169859466,0.1724,2900.2,2899.8,5.169]
[1645169859771,0.1724,2900.2,2900.0,0.00320911]
[1645169860569,0.1724,2900.2,2899.1,0.96162296]
[1645169860771,20.92267,2899.9,2899.5,0.01283835]
[1645169860973,20.06,2899.7,2899.5,0.01283835]